[Event "Championnat d'Europe Rapide"]
[Date "2024.12.08"]
[White "Domingo Nunez, Ruben"]
[Black "Kazakouski, Valery"]
[WhiteElo "2409"]
[BlackElo "2567"]
[Round "9.17"]
[Result "0-1"]
[TimeControl "900+10"]

1. e4 {[%emt 00:00:03] [%clk 00:15:16]} e5 {[%emt 00:00:08] [%clk 00:15:12]} 2.
Nf3 {[%emt 00:00:02] [%clk 00:15:24]} Nc6 {[%emt 00:00:02] [%clk 00:15:21]} 3.
Bc4 {[%emt 00:00:02] [%clk 00:15:32]} Bc5 {[%emt 00:00:02] [%clk 00:15:29]} 4.
c3 {[%emt 00:00:01] [%clk 00:15:41]} Nf6 {[%emt 00:00:01] [%clk 00:15:38]} 5. d3
{[%emt 00:00:02] [%clk 00:15:49]} d6 {[%emt 00:00:05] [%clk 00:15:42]} 6. O-O
{[%emt 00:00:02] [%clk 00:15:57]} a6 {[%emt 00:00:05] [%clk 00:15:48]} 7. Bb3
{[%emt 00:00:01] [%clk 00:16:06]} Ba7 {[%emt 00:00:06] [%clk 00:15:51]} 8. Nbd2
{[%emt 00:00:02] [%clk 00:16:14]} O-O {[%emt 00:00:03] [%clk 00:15:59]} 9. h3
{[%emt 00:00:01] [%clk 00:16:22]} h6 {[%emt 00:00:12] [%clk 00:15:57]} 10. Re1
{[%emt 00:00:02] [%clk 00:16:31]} Be6 {[%emt 00:00:01] [%clk 00:16:06]} 11. Bc2
{[%emt 00:00:01] [%clk 00:16:40]} Ne7 {[%emt 00:00:09] [%clk 00:16:07]} 12. Nf1
{[%emt 00:00:01] [%clk 00:16:49]} Ng6 {[%emt 00:00:01] [%clk 00:16:15]} 13. Ng3
{[%emt 00:00:02] [%clk 00:16:57]} Re8 {[%emt 00:00:02] [%clk 00:16:23]} 14. d4
{[%emt 00:00:02] [%clk 00:17:06]} c6 {[%emt 00:00:03] [%clk 00:16:29]} 15. Be3
{[%emt 00:00:02] [%clk 00:17:15]} Qc7 {[%emt 00:00:10] [%clk 00:16:28]} 16. Qd2
{[%emt 00:00:03] [%clk 00:17:23]} b5 {[%emt 00:00:49] [%clk 00:15:49]} 17. Nf5
{[%emt 00:00:08] [%clk 00:17:25]} Bxf5 {[%emt 00:00:19] [%clk 00:15:40]} 18.
exf5 {[%emt 00:00:01] [%clk 00:17:33]} Nf8 {[%emt 00:00:01] [%clk 00:15:49]} 19.
Bxh6 {[%emt 00:00:08] [%clk 00:17:35]} N8h7 {[%emt 00:03:48] [%clk 00:12:11]}
20. Be3 {[%emt 00:01:17] [%clk 00:16:28]} Nd5 {[%emt 00:00:11] [%clk 00:12:11]}
21. dxe5 {[%emt 00:06:26] [%clk 00:10:12]} Nxe3 {[%emt 00:00:57] [%clk
00:11:24]} 22. exd6 {[%emt 00:00:10] [%clk 00:10:12]} Qb6 {[%emt 00:00:01] [%clk
00:11:33]} 23. Rxe3 {[%emt 00:00:31] [%clk 00:09:50]} Qxe3 {[%emt 00:00:07]
[%clk 00:11:36]} 24. fxe3 {[%emt 00:01:04] [%clk 00:08:56]} Bxe3+ {[%emt
00:00:09] [%clk 00:11:38]} 25. Qxe3 {[%clk 00:09:05]} Rxe3 {[%emt 00:00:01]
[%clk 00:11:47]} 26. Kf2 {[%emt 00:00:01] [%clk 00:09:13]} Ree8 {[%emt 00:00:15]
[%clk 00:11:42]} 27. a4 {[%emt 00:00:38] [%clk 00:08:45]} Rad8 {[%emt 00:00:18]
[%clk 00:11:34]} 28. axb5 {[%emt 00:01:13] [%clk 00:07:42]} axb5 {[%emt
00:00:01] [%clk 00:11:43]} 29. Ra7 {[%clk 00:07:52]} Nf6 {[%emt 00:00:37] [%clk
00:11:16]} 30. Ng5 {[%emt 00:02:54] [%clk 00:05:08]} Rxd6 {[%emt 00:00:43] [%clk
00:10:43]} 31. Bb3 {[%clk 00:05:17]} Rd2+ {[%emt 00:00:26] [%clk 00:10:27]} 32.
Kf3 {[%emt 00:00:01] [%clk 00:05:26]} Nd5 {[%emt 00:00:02] [%clk 00:10:35]} 33.
Bxd5 {[%emt 00:00:13] [%clk 00:05:22]} Rxd5 {[%emt 00:02:06] [%clk 00:08:40]}
34. g4 {[%emt 00:00:44] [%clk 00:04:48]} Rd3+ {[%emt 00:00:32] [%clk 00:08:17]}
35. Kf4 {[%emt 00:00:12] [%clk 00:04:46]} f6 {[%emt 00:03:30] [%clk 00:04:57]}
36. Ne6 {[%emt 00:00:01] [%clk 00:04:55]} g5+ {[%emt 00:00:01] [%clk 00:05:06]}
37. fxg6 {[%emt 00:01:40] [%clk 00:03:26]} Rxe6 {[%emt 00:00:12] [%clk
00:05:04]} 38. Kf5 {[%emt 00:00:01] [%clk 00:03:35]} Red6 {[%emt 00:00:13] [%clk
00:05:00]} 39. h4 {[%emt 00:00:58] [%clk 00:02:48]} R3d5+ {[%emt 00:00:44] [%clk
00:04:26]} 40. Kf4 {[%emt 00:00:04] [%clk 00:02:54]} Rd7 {[%emt 00:00:24] [%clk
00:04:12]} 41. Ra8+ {[%emt 00:01:00] [%clk 00:02:05]} Rd8 {[%emt 00:00:04] [%clk
00:04:17]} 42. Ra7 {[%emt 00:00:07] [%clk 00:02:08]} R5d7 {[%emt 00:00:04] [%clk
00:04:23]} 43. Ra6 {[%emt 00:00:01] [%clk 00:02:17]} Rd6 {[%clk 00:04:32]} 44.
h5 {[%emt 00:01:04] [%clk 00:01:23]} Kg7 {[%emt 00:00:01] [%clk 00:04:41]} 45.
g5 {[%emt 00:00:01] [%clk 00:01:32]} R8d7 {[%emt 00:00:36] [%clk 00:04:16]} 46.
Ra8 {[%emt 00:01:08] [%clk 00:00:34]} fxg5+ {[%emt 00:00:06] [%clk 00:04:19]}
47. Kxg5 {[%emt 00:00:01] [%clk 00:00:44]} Rd5+ {[%emt 00:00:01] [%clk
00:04:28]} 48. Kg4 {[%clk 00:00:53]} b4 {[%emt 00:00:19] [%clk 00:04:18]} 49.
Rc8 {[%emt 00:00:23] [%clk 00:00:40]} bxc3 {[%emt 00:00:05] [%clk 00:04:24]} 50.
bxc3 {[%clk 00:00:50]} Rc5 {[%emt 00:00:04] [%clk 00:04:30]} 51. Re8 {[%emt
00:00:33] [%clk 00:00:27]} Rxc3 {[%emt 00:00:11]} 52. Re4 {[%clk 00:00:36]} Rcd3
{[%emt 00:00:04] [%clk 00:04:35]} 53. Kf5 {[%emt 00:00:16] [%clk 00:00:31]}
R3d5+ {[%emt 00:00:21] [%clk 00:04:24]} 54. Ke6 {[%emt 00:00:03] [%clk
00:00:38]} Rd8 {[%emt 00:00:20] [%clk 00:04:14]} 55. Rh4 {[%emt 00:00:01] [%clk
00:00:47]} Re8# {[%emt 00:00:03]} 0-1

[Site "Europe Echecs"]

[Event "Championnat d'Europe Rapide"]
[Date "2024.12.08"]
[White "Magold, Filip"]
[Black "Stojanovski, Dejan"]
[WhiteElo "2428"]
[BlackElo "2407"]
[Round "9.18"]
[Result "0-1"]
[TimeControl "900+10"]

1. e4 {[%emt 00:00:03] [%clk 00:15:18]} d6 {[%clk 00:15:19]} 2. d4 {[%clk
00:15:27]} Nf6 {[%emt 00:00:01] [%clk 00:15:28]} 3. Nc3 {[%emt 00:00:02] [%clk
00:15:35]} e5 {[%clk 00:15:36]} 4. Nf3 {[%emt 00:00:02] [%clk 00:15:44]} Nbd7
{[%emt 00:00:01] [%clk 00:15:44]} 5. Rg1 {[%emt 00:00:02] [%clk 00:15:53]} h5
{[%emt 00:00:54] [%clk 00:15:00]} 6. Bc4 {[%emt 00:00:16] [%clk 00:15:47]} Be7
{[%emt 00:00:18] [%clk 00:14:52]} 7. Bxf7+ {[%emt 00:02:29] [%clk 00:13:28]}
Kxf7 {[%emt 00:00:01] [%clk 00:15:00]} 8. Ng5+ {[%clk 00:13:37]} Kg6 {[%emt
00:00:06] [%clk 00:15:05]} 9. Ne6 {[%emt 00:00:25] [%clk 00:13:22]} Qg8 {[%emt
00:00:13] [%clk 00:15:02]} 10. Nxc7 {[%emt 00:00:28] [%clk 00:13:03]} Rb8 {[%emt
00:00:02] [%clk 00:15:11]} 11. g4 {[%emt 00:01:46] [%clk 00:11:27]} hxg4 {[%emt
00:01:08] [%clk 00:14:12]} 12. N3d5 {[%emt 00:00:29] [%clk 00:11:08]} Qf7 {[%emt
00:00:38] [%clk 00:13:44]} 13. Be3 {[%emt 00:05:17] [%clk 00:06:01]} Nb6 {[%emt
00:00:42] [%clk 00:13:12]} 14. Nxb6 {[%emt 00:00:29] [%clk 00:05:43]} axb6
{[%clk 00:13:20]} 15. Qd3 {[%emt 00:00:21] [%clk 00:05:32]} Kh7 {[%emt 00:01:36]
[%clk 00:11:55]} 16. d5 {[%emt 00:00:26] [%clk 00:05:16]} Bd7 {[%emt 00:00:23]
[%clk 00:11:42]} 17. Bxb6 {[%emt 00:00:53] [%clk 00:04:33]} Bd8 {[%emt 00:00:30]
[%clk 00:11:22]} 18. f4 {[%emt 00:00:47] [%clk 00:03:56]} gxf3 {[%emt 00:02:07]
[%clk 00:09:25]} 19. Qxf3 {[%emt 00:00:17] [%clk 00:03:48]} Rc8 {[%emt 00:00:16]
[%clk 00:09:19]} 20. Ne6 {[%emt 00:00:01] [%clk 00:03:57]} Bxe6 {[%emt 00:00:02]
[%clk 00:09:28]} 21. dxe6 {[%emt 00:00:01] [%clk 00:04:06]} Qxe6 {[%emt
00:00:05] [%clk 00:09:33]} 22. Bxd8 {[%emt 00:00:30] [%clk 00:03:45]} Rhxd8
{[%emt 00:00:03] [%clk 00:09:40]} 23. Rg2 {[%emt 00:00:01] [%clk 00:03:54]} Rf8
{[%emt 00:01:11] [%clk 00:08:39]} 24. b3 {[%emt 00:00:18] [%clk 00:03:47]} d5
{[%emt 00:00:55] [%clk 00:07:54]} 25. O-O-O {[%emt 00:00:27] [%clk 00:03:29]}
Nxe4 {[%emt 00:01:02] [%clk 00:07:03]} 26. Qh5+ {[%emt 00:00:40] [%clk
00:02:59]} Qh6+ {[%emt 00:00:10] [%clk 00:07:02]} 27. Qxh6+ {[%emt 00:00:02]
[%clk 00:03:08]} Kxh6 {[%emt 00:00:34] [%clk 00:06:37]} 28. Rxd5 {[%emt
00:00:02] [%clk 00:03:17]} Rf2 {[%emt 00:00:25] [%clk 00:06:21]} 29. Rxf2 {[%emt
00:00:19] [%clk 00:03:09]} Nxf2 {[%clk 00:06:30]} 30. Kd2 {[%emt 00:00:01] [%clk
00:03:18]} e4 {[%emt 00:00:45] [%clk 00:05:54]} 31. c4 {[%clk 00:03:27]} Ng4
{[%emt 00:00:04] [%clk 00:06:00]} 32. h3 {[%emt 00:00:02] [%clk 00:03:36]} Nf6
{[%emt 00:00:04] [%clk 00:06:06]} 33. Rb5 {[%emt 00:00:02] [%clk 00:03:44]} Rd8+
{[%emt 00:00:18] [%clk 00:05:58]} 34. Ke2 {[%clk 00:03:53]} Rd3 {[%emt 00:00:21]
[%clk 00:05:48]} 35. Rxb7 {[%clk 00:04:02]} Rxh3 {[%emt 00:00:01] [%clk
00:05:56]} 36. c5 {[%emt 00:00:13] [%clk 00:03:59]} Rh2+ {[%emt 00:00:29] [%clk
00:05:38]} 37. Ke3 {[%emt 00:00:03] [%clk 00:04:06]} Rxa2 {[%emt 00:00:01] [%clk
00:05:46]} 38. b4 {[%emt 00:00:28] [%clk 00:03:49]} Rc2 {[%emt 00:00:06] [%clk
00:05:50]} 39. Rb8 {[%emt 00:00:08] [%clk 00:03:51]} Rc4 {[%emt 00:00:11] [%clk
00:05:49]} 40. Kf4 {[%emt 00:00:56] [%clk 00:03:04]} Rxb4 {[%emt 00:00:15] [%clk
00:05:44]} 41. Rc8 {[%emt 00:00:11] [%clk 00:03:04]} Kg6 {[%emt 00:00:11] [%clk
00:05:43]} 42. c6 {[%clk 00:03:13]} Rc4 {[%emt 00:00:03] [%clk 00:05:50]} 43.
Ke3 {[%emt 00:00:17] [%clk 00:03:06]} Nd5+ {[%emt 00:00:02] [%clk 00:05:58]} 44.
Ke2 {[%clk 00:03:15]} Ne7 {[%emt 00:00:07] [%clk 00:06:00]} 0-1

[Site "Europe Echecs"]

[Event "Championnat d'Europe Rapide"]
[Date "2024.12.08"]
[White "Kilic, Eray"]
[Black "Navara, David"]
[WhiteElo "2459"]
[BlackElo "2665"]
[Round "9.19"]
[Result "1/2-1/2"]
[TimeControl "900+10"]

1. e4 {[%clk 00:15:17]} c5 {[%emt 00:00:02] [%clk 00:15:19]} 2. Nf3 {[%emt
00:00:02] [%clk 00:15:25]} d6 {[%emt 00:00:02] [%clk 00:15:28]} 3. Bb5+ {[%emt
00:00:09] [%clk 00:15:26]} Nd7 {[%emt 00:00:02] [%clk 00:15:36]} 4. d4 {[%emt
00:00:03] [%clk 00:15:32]} cxd4 {[%emt 00:00:04] [%clk 00:15:42]} 5. Nxd4 {[%emt
00:00:02] [%clk 00:15:40]} Ngf6 {[%emt 00:00:19] [%clk 00:15:33]} 6. O-O {[%emt
00:00:03] [%clk 00:15:47]} a6 {[%emt 00:00:33] [%clk 00:15:10]} 7. Bd3 {[%emt
00:00:02] [%clk 00:15:56]} Nc5 {[%emt 00:00:08] [%clk 00:15:12]} 8. Nc3 {[%emt
00:00:01] [%clk 00:16:04]} g6 {[%emt 00:00:20] [%clk 00:15:02]} 9. Re1 {[%emt
00:01:03] [%clk 00:15:11]} Bg7 {[%emt 00:00:24] [%clk 00:14:48]} 10. Bf1 {[%emt
00:00:33] [%clk 00:14:47]} O-O {[%emt 00:00:06] [%clk 00:14:54]} 11. Nb3 {[%emt
00:00:07] [%clk 00:14:50]} Nxb3 {[%emt 00:02:02] [%clk 00:13:02]} 12. axb3
{[%emt 00:00:02] [%clk 00:14:58]} Bd7 {[%emt 00:00:06] [%clk 00:13:05]} 13. Bf4
{[%emt 00:00:55] [%clk 00:14:13]} Re8 {[%emt 00:01:10] [%clk 00:12:05]} 14. Qd2
{[%emt 00:00:22] [%clk 00:14:01]} Bc6 {[%emt 00:00:38] [%clk 00:11:38]} 15. Bh6
{[%emt 00:01:27] [%clk 00:12:43]} Bh8 {[%emt 00:00:04] [%clk 00:11:45]} 16. h3
{[%emt 00:00:23] [%clk 00:12:29]} d5 {[%emt 00:01:08] [%clk 00:10:48]} 17. e5
{[%emt 00:00:16] [%clk 00:12:23]} Ne4 {[%emt 00:00:02] [%clk 00:10:56]} 18. Qd4
{[%emt 00:00:13] [%clk 00:12:18]} e6 {[%emt 00:00:28] [%clk 00:10:39]} 19. Bf4
{[%emt 00:01:55] [%clk 00:10:33]} Rc8 {[%emt 00:02:01] [%clk 00:08:49]} 20. Rad1
{[%emt 00:00:12] [%clk 00:10:31]} Qc7 {[%emt 00:01:03] [%clk 00:07:56]} 21. Nxe4
{[%emt 00:02:00] [%clk 00:08:40]} dxe4 {[%emt 00:00:02] [%clk 00:08:05]} 22. c4
{[%emt 00:00:02] [%clk 00:08:49]} Red8 {[%emt 00:00:15] [%clk 00:07:59]} 23. Qc3
{[%emt 00:00:57] [%clk 00:08:01]} Rxd1 {[%emt 00:00:50] [%clk 00:07:20]} 24.
Rxd1 {[%emt 00:00:02] [%clk 00:08:09]} Rd8 {[%emt 00:00:01] [%clk 00:07:29]} 25.
Rd4 {[%emt 00:01:29] [%clk 00:06:49]} Bg7 {[%emt 00:01:23] [%clk 00:06:16]} 26.
b4 {[%emt 00:00:39] [%clk 00:06:20]} Rxd4 {[%emt 00:01:29] [%clk 00:04:57]} 27.
Qxd4 {[%emt 00:00:01] [%clk 00:06:29]} g5 {[%emt 00:00:02] [%clk 00:05:06]} 28.
Bg3 {[%emt 00:00:19] [%clk 00:06:19]} h6 {[%emt 00:00:28] [%clk 00:04:49]} 29.
Be2 {[%emt 00:00:30] [%clk 00:05:58]} Qe7 {[%emt 00:00:32] [%clk 00:04:27]} 30.
c5 {[%emt 00:00:27] [%clk 00:05:40]} Bd5 {[%emt 00:00:03] [%clk 00:04:36]} 31.
b5 {[%emt 00:00:21] [%clk 00:05:29]} axb5 {[%emt 00:00:08] [%clk 00:04:37]} 32.
Bxb5 {[%emt 00:00:02] [%clk 00:05:38]} f5 {[%emt 00:00:19] [%clk 00:04:28]} 33.
exf6 {[%emt 00:01:33] [%clk 00:04:15]} Qxf6 {[%emt 00:00:02] [%clk 00:04:36]}
34. Qxf6 {[%emt 00:00:14] [%clk 00:04:11]} Bxf6 {[%emt 00:00:02] [%clk
00:04:45]} 35. b3 {[%emt 00:00:01] [%clk 00:04:19]} Bd4 {[%emt 00:00:12] [%clk
00:04:42]} 36. Bd6 {[%emt 00:00:15] [%clk 00:04:14]} Bxb3 {[%emt 00:00:28] [%clk
00:04:24]} 37. c6 {[%emt 00:00:02] [%clk 00:04:22]} bxc6 {[%emt 00:00:03] [%clk
00:04:31]} 38. Bxc6 {[%emt 00:00:01] [%clk 00:04:31]} Bd5 {[%emt 00:00:04] [%clk
00:04:38]} 39. Be8 {[%emt 00:00:25] [%clk 00:04:16]} Kg7 {[%emt 00:00:30] [%clk
00:04:17]} 40. Bh5 {[%emt 00:00:30] [%clk 00:03:55]} e3 {[%emt 00:00:45] [%clk
00:03:43]} 41. fxe3 {[%emt 00:00:01] [%clk 00:04:04]} Bxe3+ {[%emt 00:00:02]
[%clk 00:03:51]} 42. Kf1 {[%emt 00:00:01] [%clk 00:04:12]} Bf4 {[%emt 00:00:18]
[%clk 00:03:43]} 43. Bc5 {[%emt 00:00:26] [%clk 00:03:56]} Bg3 {[%emt 00:01:02]
[%clk 00:02:52]} 44. Be2 {[%emt 00:00:01] [%clk 00:04:04]} Kg6 {[%emt 00:00:27]
[%clk 00:02:35]} 45. Bd3+ {[%emt 00:00:04] [%clk 00:04:11]} Kf6 {[%emt 00:00:01]
[%clk 00:02:44]} 46. Be2 {[%emt 00:01:22] [%clk 00:02:58]} e5 {[%emt 00:00:03]
[%clk 00:02:52]} 47. Bd6 {[%emt 00:00:02] [%clk 00:03:06]} Kf5 {[%emt 00:01:27]
[%clk 00:01:34]} 48. Bf3 {[%emt 00:00:47] [%clk 00:02:29]} Bf7 {[%emt 00:00:18]
[%clk 00:01:27]} 49. Ke2 {[%emt 00:00:38] [%clk 00:02:00]} h5 {[%emt 00:00:13]
[%clk 00:01:25]} 50. Ke3 {[%emt 00:00:22] [%clk 00:01:48]} Ke6 {[%emt 00:00:27]
[%clk 00:01:08]} 51. Bc5 {[%emt 00:00:14] [%clk 00:01:42]} Bf4+ {[%emt 00:00:13]
[%clk 00:01:07]} 52. Kd3 {[%emt 00:00:03] [%clk 00:01:48]} Be8 {[%emt 00:00:26]
[%clk 00:00:51]} 53. Be4 {[%emt 00:00:55] [%clk 00:01:03]} Bb5+ {[%emt 00:00:06]
[%clk 00:00:55]} 54. Kc3 {[%emt 00:00:02] [%clk 00:01:12]} Be2 {[%emt 00:00:21]
[%clk 00:00:44]} 55. Kc2 {[%emt 00:00:03] [%clk 00:01:18]} h4 {[%emt 00:00:18]
[%clk 00:00:37]} 56. Kc3 {[%emt 00:00:37] [%clk 00:00:51]} Kf6 {[%emt 00:00:16]
[%clk 00:00:31]} 57. Bf3 {[%emt 00:00:28] [%clk 00:00:32]} Bxf3 {[%emt 00:00:24]
[%clk 00:00:17]} 58. gxf3 {[%emt 00:00:01] [%clk 00:00:41]} e4 {[%emt 00:00:01]
[%clk 00:00:26]} 59. Kd4 {[%emt 00:00:39] [%clk 00:00:13]} Kf5 {[%emt 00:00:23]
[%clk 00:00:13]} 60. fxe4+ {[%emt 00:00:02] [%clk 00:00:21]} Kg6 {[%emt
00:00:01] [%clk 00:00:22]} 61. Kd3 {[%emt 00:00:13] [%clk 00:00:18]} g4 {[%emt
00:00:02] [%clk 00:00:30]} 62. hxg4 {[%emt 00:00:12] [%clk 00:00:15]} h3 {[%emt
00:00:01] [%clk 00:00:39]} 63. Bg1 {[%emt 00:00:03] [%clk 00:00:23]} Kg5 {[%emt
00:00:01] [%clk 00:00:49]} 64. Ke2 {[%emt 00:00:02] [%clk 00:00:30]} Kxg4 {[%emt
00:00:01] [%clk 00:00:57]} 65. Kf1 {[%emt 00:00:27] [%clk 00:00:14]} Kf3 {[%emt
00:00:08] [%clk 00:00:59]} 66. Bh2 {[%emt 00:00:08] [%clk 00:00:16]} Bxh2 {[%emt
00:00:08] [%clk 00:01:00]} 67. e5 {[%clk 00:00:25]} Bf4 {[%emt 00:00:06] [%clk
00:01:04]} 68. Kg1 {[%emt 00:00:05] [%clk 00:00:30]} h2+ {[%emt 00:00:01] [%clk
00:01:13]} 69. Kh1 {[%emt 00:00:01] [%clk 00:00:40]} Bxe5 {[%emt 00:00:02] [%clk
00:01:22]} 1/2-1/2

[Site "Europe Echecs"]

[Event "Championnat d'Europe Rapide"]
[Date "2024.12.08"]
[White "Santos Latasa, Jaime"]
[Black "Saraci, Nderim"]
[WhiteElo "2628"]
[BlackElo "2431"]
[Round "9.20"]
[Result "1/2-1/2"]
[TimeControl "900+10"]

1. Nf3 {[%emt 00:30:18] [%clk 00:15:18]} d5 {[%emt 00:00:03] [%clk 00:15:17]} 2.
e3 {[%emt 00:00:01] [%clk 00:15:27]} Nf6 {[%emt 00:00:05] [%clk 00:15:22]} 3. c4
{[%emt 00:00:02] [%clk 00:15:36]} e6 {[%emt 00:00:31] [%clk 00:15:01]} 4. Nc3
{[%emt 00:00:02] [%clk 00:15:44]} Be7 {[%emt 00:00:08] [%clk 00:15:03]} 5. b3
{[%emt 00:00:03] [%clk 00:15:52]} O-O {[%emt 00:00:03] [%clk 00:15:09]} 6. Bb2
{[%emt 00:00:02] [%clk 00:16:00]} c5 {[%emt 00:00:54] [%clk 00:14:25]} 7. cxd5
{[%emt 00:00:03] [%clk 00:16:07]} exd5 {[%emt 00:00:36] [%clk 00:13:59]} 8. d4
{[%emt 00:00:02] [%clk 00:16:15]} Nc6 {[%emt 00:00:04] [%clk 00:14:04]} 9. Be2
{[%emt 00:00:03] [%clk 00:16:22]} Ne4 {[%emt 00:00:22] [%clk 00:13:53]} 10. dxc5
{[%emt 00:00:02] [%clk 00:16:30]} Bf6 {[%emt 00:00:39] [%clk 00:13:24]} 11. Rc1
{[%emt 00:01:25] [%clk 00:15:15]} Qa5 {[%emt 00:00:20] [%clk 00:13:14]} 12. Nd4
{[%emt 00:00:03] [%clk 00:15:22]} Nxc5 {[%emt 00:01:59] [%clk 00:11:25]} 13.
Nxc6 {[%emt 00:00:03] [%clk 00:15:29]} bxc6 {[%emt 00:00:01] [%clk 00:11:33]}
14. Qd2 {[%emt 00:00:02] [%clk 00:15:38]} Bd7 {[%emt 00:03:05] [%clk 00:08:38]}
15. Nd1 {[%emt 00:01:34] [%clk 00:14:13]} Qxd2+ {[%emt 00:00:18] [%clk
00:08:31]} 16. Kxd2 {[%emt 00:00:01] [%clk 00:14:21]} Ne4+ {[%emt 00:01:11]
[%clk 00:07:31]} 17. Ke1 {[%emt 00:00:02] [%clk 00:14:28]} Be7 {[%emt 00:00:37]
[%clk 00:07:05]} 18. f3 {[%emt 00:00:09] [%clk 00:14:29]} Nf6 {[%emt 00:00:36]
[%clk 00:06:38]} 19. Nf2 {[%emt 00:01:08] [%clk 00:13:31]} a5 {[%emt 00:00:24]
[%clk 00:06:25]} 20. Nd3 {[%emt 00:00:14] [%clk 00:13:27]} Rfb8 {[%emt 00:00:03]
[%clk 00:06:31]} 21. Be5 {[%emt 00:00:32] [%clk 00:13:06]} Rb7 {[%emt 00:00:13]
[%clk 00:06:27]} 22. Nc5 {[%emt 00:01:00] [%clk 00:12:16]} Bxc5 {[%emt 00:00:13]
[%clk 00:06:25]} 23. Rxc5 {[%emt 00:00:01] [%clk 00:12:25]} a4 {[%emt 00:00:06]
[%clk 00:06:29]} 24. Bd1 {[%emt 00:00:01] [%clk 00:12:33]} axb3 {[%emt 00:00:07]
[%clk 00:06:32]} 25. Bxb3 {[%emt 00:00:08] [%clk 00:12:35]} Ra6 {[%emt 00:00:26]
[%clk 00:06:17]} 26. Kf2 {[%emt 00:00:46] [%clk 00:11:58]} Be6 {[%emt 00:00:02]
[%clk 00:06:25]} 27. Bd4 {[%emt 00:00:18] [%clk 00:11:51]} Nd7 {[%emt 00:00:30]
[%clk 00:06:04]} 28. Rc3 {[%emt 00:00:15] [%clk 00:11:46]} Nf8 {[%emt 00:00:32]
[%clk 00:05:42]} 29. Rhc1 {[%emt 00:00:37] [%clk 00:11:19]} Bd7 {[%emt 00:00:02]
[%clk 00:05:51]} 30. R3c2 {[%emt 00:00:42] [%clk 00:10:47]} Ne6 {[%emt 00:00:03]
[%clk 00:05:58]} 31. Ba1 {[%emt 00:00:03] [%clk 00:10:54]} Ra5 {[%emt 00:00:30]
[%clk 00:05:37]} 32. g4 {[%emt 00:00:38] [%clk 00:10:26]} Rbb5 {[%emt 00:00:08]
[%clk 00:05:40]} 33. Bc3 {[%emt 00:00:10] [%clk 00:10:26]} Nc5 {[%emt 00:00:12]
[%clk 00:05:38]} 34. Bxa5 {[%emt 00:00:51] [%clk 00:09:45]} Nd3+ {[%emt
00:00:01] [%clk 00:05:46]} 35. Ke2 {[%emt 00:00:16] [%clk 00:09:39]} Nxc1+
{[%emt 00:00:03] [%clk 00:05:53]} 36. Rxc1 {[%emt 00:00:01] [%clk 00:09:48]}
Rxa5 {[%emt 00:00:02] [%clk 00:06:02]} 37. Kd3 {[%emt 00:00:05] [%clk 00:09:53]}
Kf8 {[%emt 00:00:12] [%clk 00:06:00]} 38. Kd4 {[%emt 00:00:01] [%clk 00:10:02]}
Ke7 {[%emt 00:00:02] [%clk 00:06:08]} 39. Rc5 {[%emt 00:00:01] [%clk 00:10:11]}
Ra8 {[%emt 00:00:02] [%clk 00:06:16]} 40. e4 {[%emt 00:00:11] [%clk 00:10:10]}
dxe4 {[%emt 00:00:12] [%clk 00:06:14]} 41. Kxe4 {[%emt 00:00:05] [%clk
00:10:14]} f6 {[%emt 00:00:09] [%clk 00:06:15]} 42. Kd4 {[%emt 00:00:55] [%clk
00:09:30]} Kd6 {[%emt 00:00:01] [%clk 00:06:22]} 43. Rc2 {[%emt 00:00:03] [%clk
00:09:38]} Ra5 {[%emt 00:00:08] [%clk 00:06:25]} 44. Rd2 {[%emt 00:00:10] [%clk
00:09:37]} h5 {[%emt 00:00:21] [%clk 00:06:15]} 45. h3 {[%emt 00:00:09] [%clk
00:09:39]} hxg4 {[%emt 00:00:04] [%clk 00:06:21]} 46. hxg4 {[%emt 00:00:09]
[%clk 00:09:38]} g5 {[%emt 00:00:12] [%clk 00:06:20]} 47. Kc3+ {[%emt 00:00:14]
[%clk 00:09:34]} Kc7 {[%emt 00:00:03] [%clk 00:06:27]} 48. Rh2 {[%emt 00:00:11]
[%clk 00:09:32]} Re5 {[%emt 00:00:42] [%clk 00:05:54]} 49. Kd2 {[%emt 00:00:40]
[%clk 00:09:03]} f5 {[%emt 00:00:15] [%clk 00:05:49]} 50. gxf5 {[%emt 00:00:32]
[%clk 00:08:42]} Bxf5 {[%emt 00:00:08] [%clk 00:05:51]} 51. Rg2 {[%emt 00:00:09]
[%clk 00:08:42]} Bd7 {[%emt 00:00:10] [%clk 00:05:52]} 52. Rh2 {[%emt 00:00:16]
[%clk 00:08:36]} Bf5 {[%emt 00:00:02] [%clk 00:05:59]} 53. Rh6 {[%emt 00:00:23]
[%clk 00:08:22]} Bd7 {[%emt 00:00:09] [%clk 00:06:01]} 54. Rg6 {[%emt 00:00:18]
[%clk 00:08:15]} Be8 {[%emt 00:00:26] [%clk 00:05:45]} 55. Rf6 {[%emt 00:00:09]
[%clk 00:08:16]} Bd7 {[%emt 00:00:07] [%clk 00:05:47]} 56. Bc2 {[%emt 00:00:06]
[%clk 00:08:20]} Ra5 {[%emt 00:00:18] [%clk 00:05:40]} 57. Bb3 {[%emt 00:00:27]
[%clk 00:08:03]} Rf5 {[%emt 00:00:40] [%clk 00:05:09]} 58. Rg6 {[%emt 00:00:22]
[%clk 00:07:52]} Rxf3 {[%emt 00:00:15] [%clk 00:05:04]} 1/2-1/2

[Site "Europe Echecs"]